Cogmind - Beta 17 @@@ ROGUE MODE // 2026.08.01 @ 11:40:06 Player: Minty Result: Self-destructed Performance ------------- Evolutions (6) 3000 Regions Visited (14) 2800 Robots Destroyed (172) 860 Value Destroyed (5840) 5840 Prototype IDs (53) 1060 Alien Tech Used (3) 600 Bonus (12111) 12111 TOTAL SCORE: 26271 Bonus ------- High Alert Combat Kills 136 Follower Combat Kills 608 Prayed to X0-1V1 5000 Major X0-1V1 Interference 5900 Aligned with FarCom 300 Met Zhirov 300 Friendly Fire -133 Cogmind --------- Core Integrity 277/900 Matter 865/900 Energy 1216/1640 System Corruption 10% Temperature Cool (0) Movement Core (700) Ox13 Location -4/Factory Parts ------- > --- POWER (2) -------- Heavy Antimatter Reactor > --- PROPULSION (4) --- Armored Treads > --- UTILITY (8) ------ Medium Storage Unit Enhanced Optical Array Improved Signal Interpreter > --- WEAPON (7) ------- Heavy Assault Cannon > --- INVENTORY (11) --- Particle Accelerator Improved Power Shielding Dirty Bomb Trap Dirty Bomb Trap Fire Trap Fire Trap Fire Trap Peak State ------------ > --- POWER ------------ Light Fission Core > --- PROPULSION ------- Wheel Wheel Wheel Compact Wheel > --- UTILITY ---------- Medium Storage Unit Enhanced Optical Array Improved Sensor Array Improved Signal Interpreter Improved Power Shielding Improved Utility Shielding Advanced System Shield X0-1V1's Piety Tracker > --- WEAPON ----------- Firepult XL Autogun Subcomponent XL Autogun Subcomponent Impact Mace Master Tearclaws > --- INVENTORY -------- Heavy Antimatter Reactor Advanced Cooling System Particle Accelerator Transdimensional Reconstructor Dirty Bomb Trap Dirty Bomb Trap Fire Trap Fire Trap Fire Trap [Rating: 101] Favorites ----------- Power Heavy Deuterium Engine Engine Heavy Deuterium Engine Power Core Light Fission Core Reactor Heavy Antimatter Reactor Propulsion Improved Treads Treads Improved Treads Leg Flexi-carbon Leg Wheel Wheel Hover Unit Gravmag Array Flight Unit Field Propulsion Drive Utility Medium Storage Unit Device Improved Sensor Array Storage Medium Storage Unit Processor Improved Signal Interpreter Hackware Advanced System Shield Protection Improved Utility Shielding Weapon XL Autogun Subcomponent Energy Gun Heavy Particle Gun Energy Cannon Improved EM Pulse Cannon Ballistic Gun XL Autogun Subcomponent Ballistic Cannon Improved Light Cannon Launcher Grenade Launcher Special Weapon CPS Tube Impact Weapon Impact Mace Slashing Weapon Master Tearclaws Build | -11 -10 -10 -10 -9 -8 -8 -7 -6 -5 -5 -5 -5 -4 -4 ------- Run | Yrd Mat Min Exi Min Mat Sto Fac Fac Fac Upp Upp Zhi Pro Fac Slots Evolved 12 | . . . . . 4 . 2 2 2 . . . . 2 Power 1 | . . . . . . . . . . . . . . 1 Propulsion 2 | . . . . . . . . . 2 . . . . . Utility 5 | . . . . . 1 . 2 1 . . . . . 1 Weapon 4 | . . . . . 3 . . 1 . . . . . . Parts Attached 128 | . 10 3 2 2 15 16 19 15 10 4 12 4 2 14 Power 10 | . 1 . 1 . 2 1 2 1 . . . 2 . . Engine 7 | . 1 . 1 . 2 1 1 1 . . . . . . Core 2 | . . . . . . . 1 . . . . 1 . . Reactor 1 | . . . . . . . . . . . . 1 . . Propulsion 30 | . 4 . . 1 3 5 1 5 3 . 1 . . 7 Treads 11 | . 3 . . 1 1 3 1 1 . . . . . 1 Leg 5 | . 1 . . . . . . 3 . . . . . 1 Wheel 11 | . . . . . 2 2 . . 2 . . . . 5 Hover 1 | . . . . . . . . 1 . . . . . . Flight 2 | . . . . . . . . . 1 . 1 . . . Utility 44 | . 1 1 1 . 5 1 9 8 6 3 4 2 1 2 Device 22 | . . 1 1 . 5 1 3 4 3 1 1 . . 2 Storage 3 | . . . . . . . 1 . 1 . . 1 . . Processor 8 | . 1 . . . . . 2 2 2 . 1 . . . Hackware 2 | . . . . . . . 1 . . . . . 1 . Protection 9 | . . . . . . . 2 2 . 2 2 1 . . Artifact . | . . . . . . . . . . . . . . . Weapon 44 | . 4 2 . 1 5 9 7 1 1 1 7 . 1 5 Energy Gun 16 | . 2 1 . . 4 7 . . . . . . . 2 Energy Cannon 3 | . . . . . 1 . . . 1 . . . . 1 Ballistic Gun 15 | . 1 1 . . . . 4 1 . 1 6 . . 1 Ballistic Cannon 2 | . . . . 1 . . . . . . . . . 1 Launcher 4 | . 1 . . . . 2 1 . . . . . . . Special Weapon 1 | . . . . . . . . . . . 1 . . . Impact Weapon 2 | . . . . . . . 2 . . . . . . . Slashing Weapon 1 | . . . . . . . . . . . . . 1 . Piercing Weapon . | . . . . . . . . . . . . . . . Special Melee Weapon . | . . . . . . . . . . . . . . . Unidentified Prototypes 20 | . . . . . 1 6 5 . 1 1 1 4 . 1 Corrupted Parts 8 | . 1 . . . . 1 1 . . 1 1 . 2 1 System Corruption 42 | . 5 . . . . 2 3 . . 1 1 . 20 10 Parts Lost 52 | . 2 . . . 6 . 2 8 4 2 6 . 1 21 Power 1 | . . . . . . . . . . . . . . 1 Propulsion 19 | . 1 . . . 3 . . 4 1 . 3 . 1 6 Utility 14 | . . . . . 2 . 2 2 1 . 3 . . 4 Weapon 18 | . 1 . . . 1 . . 2 2 2 . . . 10 Highest Loss Streak 19 | . 2 . . . 6 . 2 2 2 1 4 . 1 19 To Critical Strikes . | . . . . . . . . . . . . . . . Average Backups 5 | . 7 8 6 4 3 4 6 7 6 6 5 6 4 4 Power . | . 2 2 1 . . . . . 1 1 1 1 1 . Propulsion . | . 1 . . . . . . . . . . . . . Utility 2 | . 2 2 2 2 1 1 1 2 2 3 2 2 1 2 Weapon 2 | . 1 3 3 2 1 2 5 3 2 2 . 1 . . Tool/Special . | . . . . . . . . . . . . . . . Unused Backups 17 | . 8 1 2 . . . 1 2 . . . 1 1 1 Power 5 | . 2 1 1 . . . . 1 . . . . . . Propulsion 4 | . 4 . . . . . . . . . . . . . Utility 6 | . 2 . . . . . . 1 . . . 1 1 1 Weapon 2 | . . . 1 . . . 1 . . . . . . . Tool/Special . | . . . . . . . . . . . . . . . Average Slot Usage (%) 78 | . 93 93 72 83 70 92 79 88 66 72 78 56 74 67 Engine 6 | . 14 14 14 14 9 9 5 5 5 5 4 3 . . Treads 9 | . 17 28 28 29 21 6 19 12 . . . . . . Leg 1 | . 10 . . . . . . 5 2 . . . . . Wheel 2 | . . . . . 1 16 . . 5 10 1 . . 6 Flight 2 | . . . . . . . . . 1 5 6 5 2 . Device 12 | . . 9 14 14 15 18 12 24 31 16 8 5 5 7 Storage 7 | . 14 14 14 14 9 9 5 5 5 5 5 5 5 4 Processor 5 | . 8 4 . . . . 2 1 1 5 6 10 10 9 Protection 7 | . . . . . . . 6 5 . 8 11 15 13 6 Energy Gun 6 | . 7 9 1 . 6 29 14 17 4 . . . . . Ballistic Gun 9 | . 10 8 . . . . 3 2 . 5 26 1 21 12 Launcher 1 | . 10 4 . . . 3 . . 1 . . . . . Impact Weapon 2 | . . . . . . . . 3 5 5 4 5 5 3 Peak Build Rating 101 | . 10 12 13 17 34 41 76 75 64 91 93 73 86 101 Average Rating 52 | . 8 10 10 14 25 38 53 56 56 74 78 47 74 75 On Entrance 41 | 6 6 10 10 13 17 34 41 69 49 59 86 78 73 78 Avg Prop Armor Cover (%) 3 | . . . . . . . . 12 1 1 . . . 5 Naked Turns . | . . . . . . . . . . . . . . . Heaviest Build 64 | 12 17 20 17 18 34 36 48 47 45 64 57 41 59 50 Greatest Support 69 | 20 40 40 40 63 66 69 69 66 20 20 20 7 7 46 Greatest Overweight (x) 19 | . 1 . . . 11 1 . 2 13 3 17 5 19 16 Average Overweight (x) 1 | . . . . . . . . . 1 1 3 3 8 3 Largest Inventory Capacity 11 | . 8 8 8 8 8 9 11 11 11 11 11 11 11 11 Average Capacity 10 | . 8 8 8 8 8 8 9 11 11 11 11 11 11 11 Most Carried 11 | . 8 8 8 8 8 9 11 11 11 11 11 11 11 11 Average Carried 9 | . 7 7 7 8 7 8 9 10 10 8 10 10 10 10 Final Capacity 11 | 8 8 8 8 8 8 9 11 11 11 11 11 11 11 11 Final Carried 11 | 6 8 8 8 8 8 9 10 11 11 6 11 11 11 7 Class Distribution -------------------- 23% | Mutant 18% | Assassin 11% | Derelict-Assassin 7% | Scavenger-Mutant 5% | Executioner 5% | Commander-Gunner 5% | Scavenger-Executioner 4% | Scavenger-Gunner 4% | Tank 4% | Derelict-Executioner 4% | Gunner Dominant Class ---------------- Mutant | -10/Materials Mutant | -10/Mines Mutant | -10/Exiles Mutant | -9/Mines Mutant | -8/Materials Commander-Gunner | -8/Storage Tank | -7/Factory Scavenger-Mutant | -6/Factory Scavenger-Mutant | -5/Factory Scavenger-Executioner | -5/Upper Caves Derelict-Assassin | -5/Upper Caves Derelict-Assassin | -5/Zhirov Assassin | -4/Proximity Caves Assassin | -4/Factory Resources | -11 -10 -10 -10 -9 -8 -8 -7 -6 -5 -5 -5 -5 -4 -4 ----------- Run | Yrd Mat Min Exi Min Mat Sto Fac Fac Fac Upp Upp Zhi Pro Fac Matter Collected 5491 | 169 149 217 . 75 227 225 606 680 280 354 684 329 465 1031 Remotely . | . . . . . . . . . . . . . . . Salvage Created 7703 | . 239 50 . 6 599 1042 1064 1210 801 559 412 471 410 840 Parts 284 | . 22 2 . 2 15 40 48 33 25 27 24 4 15 27 Haulers Intercepted 11 | . . . . . . 6 2 2 . . . . . 1 Recyclers Shooed 8 | . . 2 . . 1 . 2 1 . . . . . 2 Parts Field Recycled . | . . . . . . . . . . . . . . . Retrieved Matter . | . . . . . . . . . . . . . . . Parts Self-Destructed 58 | . . . . . . . . . . 25 16 2 15 . Prevented 7 | . . . . . . . . . . 6 . 1 . . Parts Restored . | . . . . . . . . . . . . . . . Kills | -11 -10 -10 -10 -9 -8 -8 -7 -6 -5 -5 -5 -5 -4 -4 ------- Run | Yrd Mat Min Exi Min Mat Sto Fac Fac Fac Upp Upp Zhi Pro Fac Combat Hostiles Destroyed 118 | . 8 3 . 2 12 10 15 21 14 8 10 . 6 9 Melee 2 | . . . . 1 . . . . 1 . . . . . Guns 49 | . 2 1 . . 1 8 9 12 . 6 6 . 2 2 Cannons 6 | . . . . 1 5 . . . . . . . . . AOE 40 | . 6 1 . . 4 2 5 6 8 2 2 . 2 2 Classes Destroyed 21 | . 7 . . . 4 1 4 1 . . 4 . . . Worker 9 | . . . . . . . 3 2 1 . . . . 3 Builder 13 | . 2 . . . 1 5 2 3 . . . . . . Tunneler 3 | . 1 . . 1 . . . . 1 . . . . . Hauler 11 | . . . . . . 6 2 2 . . . . . 1 Recycler 12 | . 1 . . . 1 4 2 1 2 . . . . 1 Minesweeper 2 | . . . . . . . . . . . 1 . 1 . Mechanic 1 | . 1 . . . . . . . . . . . . . Operator 2 | . 1 . . . . . . . . . . . . 1 Drone 1 | . . . . . . . . . . . 1 . . . Watcher 1 | . . . . . 1 . . . . . . . . . Swarmer 29 | . 6 2 . 2 2 3 6 2 4 . 2 . . . Grunt 44 | . 2 1 . . 7 6 4 10 8 3 . . 2 1 Brawler 4 | . . . . . 1 . . . . 1 2 . . . Duelist 2 | . . . . . 1 . . . 1 . . . . . Sentry 8 | . . . . . 2 1 . . 1 2 1 . 1 . Specialist 1 | . . . . . . . . 1 . . . . . . Hunter 12 | . . . . . . . 2 2 . 2 . . . 6 Programmer 9 | . . . . . . . 2 3 . . . . 3 1 Heavy 2 | . . . . . . . 1 . . . . . . 1 Samaritan 1 | . . . . . . . . . . . 1 . . . Master Thief 4 | . . . . . . . . . . . 4 . . . Wasp 3 | . . . . . . . . 3 . . . . . . Best Kill Streak 8 | . 6 2 . 1 5 7 4 5 4 4 4 . 3 8 Combat Bots Only 5 | . 4 2 . 1 5 3 4 4 4 4 4 . 3 3 Max Kills in Single Turn 4 | . 3 2 . 1 4 2 2 2 4 2 1 . 2 3 Gunslinging . | . . . . . . . . . . . . . . . Exploded 4 | . 1 1 . . 3 2 2 2 4 2 1 . 2 1 Melee 1 | . . . . 1 . . . . 1 . . . . . Uniques/NPCs Destroyed . | . . . . . . . . . . . . . . . Combat | -11 -10 -10 -10 -9 -8 -8 -7 -6 -5 -5 -5 -5 -4 -4 -------- Run | Yrd Mat Min Exi Min Mat Sto Fac Fac Fac Upp Upp Zhi Pro Fac Hostile Shots Fired 879 | . 40 1 . 53 79 54 56 135 31 34 119 . 54 223 Missed 272 | . 10 1 . 18 18 17 16 38 12 8 28 . 19 87 Hits 607 | . 30 . . 35 61 37 40 97 19 26 91 . 35 136 Melee 68 | . . . . . 2 . . . . . 66 . . . Projectile 539 | . 30 . . 35 59 37 40 97 19 26 25 . 35 136 AOE 1 | . . . . . . . . 1 . . . . . . Critical Strikes 17 | . 1 . . . 5 1 1 1 1 2 1 . 1 3 Actively Blocked 1 | . . . . . . . . . . . . . 1 . Damage Taken 9341 | . 329 32 . 274 875 528 792 1970 428 535 796 . 753 2029 Core 1651 | . 58 . . 113 161 161 30 259 60 33 33 . 135 608 Absorbed by Shields 148 | . . . . . 148 . . . . . . . . . Redirected to Shielding 430 | . . . . . . . 97 97 . 21 76 . 39 100 Ignored by Resistances 58 | . . . . . . . . . . . . . . 58 Regen/Repaired (Parts) 77 | . . . . . . . . 77 . . . . . . Core Remaining (%) 70 | 100 . . . 31 . 50 95 65 . . . . 82 . Volleys Fired 324 | . 16 6 . 4 35 61 38 43 17 16 36 . 20 32 Largest 6 | . 2 2 . 1 4 4 4 5 2 2 6 . 5 4 Hottest 360 | . 80 56 . 33 276 276 220 360 114 129 140 . 330 315 Shots Fired 821 | . 31 11 . 4 50 183 79 118 19 25 174 1 65 61 Gun 716 | . 22 10 . . 20 182 74 113 1 17 174 1 59 43 Cannon 77 | . . . . 4 30 . . 1 13 7 . . 4 18 Launcher 26 | . 9 1 . . . 1 5 4 5 1 . . . . Special 2 | . . . . . . . . . . . . . 2 . Kinetic 379 | . 8 3 . 4 28 . 42 5 . 17 174 1 59 38 Thermal 378 | . . 7 . . 22 182 32 109 1 . . . 4 21 Explosive 23 | . 9 1 . . . . 3 4 5 1 . . . . Electromagnetic 39 | . 14 . . . . 1 2 . 13 7 . . . 2 Robot Hit Streak 19 | . 6 4 . 2 9 6 9 13 6 7 19 . 7 7 Robot Miss Streak 30 | . 2 4 . 2 5 7 6 5 5 4 30 . 6 4 Penetration Max 1 | . . . . . . . . . . . . . . 1 Secondary Targets 7 | . . . . . . 2 1 2 . . 2 . . . Max Gunslinging Chain 1 | . . . . . . 1 1 1 . . 1 . . . Shots Hit Robots 434 | . 15 5 . 2 28 79 49 74 23 21 56 10 31 41 Core Hits 309 | . 19 3 . 1 25 39 39 67 25 25 26 3 14 23 Critical Kills 1 | . . . . . . . . . . . . 1 . . Critical Parts Destroyed 5 | . . . . . . . . 1 2 . . 1 . 1 Critical Strikes 17 | . . . . . 1 3 1 4 2 . . 4 . 2 Burn 7 | . . . . . . 3 1 3 . . . . . . Blast 2 | . . . . . 1 . . . . . . . . 1 Smash 8 | . . . . . . . . 1 2 . . 4 . 1 Melee Attacks 66 | . . . . . . . . 20 9 2 16 10 1 8 Impact 65 | . . . . . . . . 20 9 2 16 10 1 7 Slashing 1 | . . . . . . . . . . . . . . 1 Piercing . | . . . . . . . . . . . . . . . Sneak Attacks 5 | . . . . . . . . 2 2 . . . . 1 Combat Hostiles . | . . . . . . . . . . . . . . . Follow-up Attacks . | . . . . . . . . . . . . . . . Damage Inflicted 18373 | . 957 183 . 54 1157 1900 2066 3331 1448 1126 2122 883 947 2199 Guns 7939 | . 199 86 . . 213 1716 1528 1253 22 672 1291 . 513 446 Cannons 1446 | . . . . 46 465 . . . 270 102 . . 106 457 Explosions 6151 | . 747 75 . . 465 184 505 1409 590 246 591 . 328 1011 Melee 2715 | . . . . . . . . 635 566 106 240 883 . 285 Ramming 122 | . 11 22 . 8 14 . 33 34 . . . . . . Kinetic 4873 | . 78 14 . 46 354 . 1202 39 . 672 1291 . 513 664 Thermal 5431 | . 58 72 . . 789 1716 326 1301 22 . . . 434 713 Explosive 3696 | . 689 75 . . . . 262 1322 590 246 . . . 512 Electromagnetic 1536 | . 121 . . . . 184 243 . 270 102 591 . . 25 Impact 2708 | . . . . . . . . 635 566 106 240 883 . 278 Slashing 7 | . . . . . . . . . . . . . . 7 Piercing . | . . . . . . . . . . . . . . . Highest Corruption 56 | . 5 5 5 5 . 9 20 3 . 18 33 33 56 10 Average Corruption 23 | . 5 5 5 5 . 7 12 1 . 17 26 33 49 10 Corruption Purged . | . . . . . . . . . . . . . . . Corruption Blocked . | . . . . . . . . . . . . . . . Effects 346 | . 13 18 10 7 . 15 25 3 . 13 91 38 104 9 Message Errors 94 | . 3 5 5 2 . 3 6 . . 3 28 15 23 1 Matter Fused 81 | . 3 3 . 3 . 5 6 1 . 3 19 14 22 2 Heat Flow Errors 40 | . 3 1 2 1 . 2 1 . . 2 13 3 11 1 Energy Discharges 40 | . 2 4 . . . 1 2 . . 3 8 1 18 1 Parts Rejected 1 | . . . . . . . . . . . . . . 1 Parts Fused 5 | . . . . . . . . . . . 3 1 1 . Data Loss (minor) 35 | . 1 1 3 1 . 1 3 1 . . 8 3 11 2 Data Loss (major) 11 | . . . . . . 1 . 1 . 1 4 . 4 . Misfires 9 | . . 4 . . . . 2 . . 1 1 1 . . Alerts 10 | . 1 . . . . 1 2 . . . 1 . 5 . Misdirections 1 | . . . . . . . . . . . . . . 1 Weapon Failures 19 | . . . . . . 1 3 . . . 6 . 9 . Overload Shots . | . . . . . . . . . . . . . . . Overflow Damage 1059 | . 43 . . . 3 2 . 176 270 69 80 265 . 151 Projectiles . | . . . . . . . . . . . . . . . Explosions 193 | . 43 . . . 3 2 . . 13 . 80 . . 52 Melee 866 | . . . . . . . . 176 257 69 . 265 . 99 Knockbacks 19 | . . . . 1 4 . . 6 3 1 . . . 4 Impact 14 | . . . . . . . . 6 3 1 . . . 4 Kinetic 5 | . . . . 1 4 . . . . . . . . . Secondary . | . . . . . . . . . . . . . . . Self-Inflicted Damage 469 | . 65 . . . 60 . 19 12 71 63 107 . 32 40 Shots 27 | . 3 . . . 4 . 1 2 4 3 2 . 4 4 Rammed 27 | . 3 5 . 2 7 . 4 6 . . . . . . Targets Rammed 34 | . 4 5 . 4 8 . 4 9 . . . . . . Kicked 3 | . 1 . . . . . . 2 . . . . . . Crushed 4 | . . . . 2 1 . . 1 . . . . . . Highest Temperature 585 | . 173 123 219 63 459 396 326 274 6 196 490 227 450 585 Average Temperature 119 | . 54 62 117 42 184 97 38 90 3 35 158 93 133 216 Received Heat Transfer 1559 | . 30 15 . . 440 207 63 243 135 90 54 . 90 192 Effects 12 | . . . . . 3 . . 1 . . 1 . 4 3 Shutdowns 1 | . . . . . . . . . . . . . . 1 Energy Bleed 1 | . . . . . . . . . . . . . 1 . Interference 7 | . . . . . 3 . . 1 . . . . 3 . Matter Decay 1 | . . . . . . . . . . . . . . 1 Damage (minor) 2 | . . . . . . . . . . . 1 . . 1 Siege Activations . | . . . . . . . . . . . . . . . Martial Activations . | . . . . . . . . . . . . . . . Shielding Activations . | . . . . . . . . . . . . . . . Robots Disrupted . | . . . . . . . . . . . . . . . Combat Hostiles . | . . . . . . . . . . . . . . . Robots Corrupted 16 | . . . . . . . . 3 6 1 2 2 . 2 Combat Hostiles 13 | . . . . . . . . 2 5 1 2 2 . 1 Parts Fried 21 | . 1 . . . . . 1 4 6 . 8 . . 1 Impact Corruptions 26 | . . . . . . . . 6 7 2 . 7 . 4 Robots Melted 12 | . . . . . 2 . 1 2 . . . . 2 5 Combat Hostiles 10 | . . . . . 2 . 1 1 . . . . 2 4 Parts Melted 65 | . . . . . 20 . 4 13 . . . . 13 15 Heat Transferred 15990 | . 100 185 . . 3607 3515 666 3119 37 . . . 1840 2921 Parts Sabotaged . | . . . . . . . . . . . . . . . Parts Stolen 7 | . . . . . . . . . . . 7 . . . Parts Stripped . | . . . . . . . . . . . . . . . Power Chain Reactions 1 | . 1 . . . . . . . . . . . . . Alert | -11 -10 -10 -10 -9 -8 -8 -7 -6 -5 -5 -5 -5 -4 -4 ------- Run | Yrd Mat Min Exi Min Mat Sto Fac Fac Fac Upp Upp Zhi Pro Fac Maximum Alert Level 3 | . . . . . . 3 2 1 2 . . . . 1 Low Security (%) 59 | . 100 100 . 100 100 57 . 53 36 . . . . 60 Level 1 27 | . . . . . . 5 59 46 54 . . . . 39 Level 2 9 | . . . . . . 18 40 . 8 . . . . . Level 3 2 | . . . . . . 19 . . . . . . . . Level 4 . | . . . . . . . . . . . . . . . Level 5 . | . . . . . . . . . . . . . . . High Security . | . . . . . . . . . . . . . . . Max Security . | . . . . . . . . . . . . . . . Peak Influence 932 | . 178 55 . 90 196 932 550 348 426 . . . . 376 Initial 413 | . . . . . . 73 413 263 158 . . . . 30 Average 201 | . 70 8 . 34 119 343 393 192 248 . . . . 147 Influence Increases 5016 | . 293 87 . 125 494 1177 699 635 506 185 130 15 145 525 Destroy 0b10 Robot/C 2780 | . 160 60 . 60 300 560 360 420 280 160 120 . 120 180 Destroy 0b10 Robot/NC 310 | . 30 . . 5 15 80 55 40 20 5 10 15 5 30 Destroy Leader 568 | . 30 20 . 10 82 114 76 104 50 20 . . 20 42 Allied During Kill 366 | . . 2 . 5 31 297 31 . . . . . . . Trap Triggered on 0b10 10 | . . . . . . . . . 10 . . . . . Successful Hack 87 | . . . . . 30 15 28 . 14 . . . . . Disable Machine 330 | . 15 . . . . 90 90 . 15 . . . . 120 Destroy Structure 400 | . 43 5 . . 6 6 44 56 102 . . . . 138 Partial Spotted 30 | . . . . . . . 15 . 15 . . . . . Lose Combat Pursuer 135 | . 15 . . 45 30 15 . 15 . . . . . 15 Influence Decreases 4796 | . 293 87 . 125 320 443 1069 849 412 430 303 15 97 353 Entered New Map 1245 | . . . . . . 101 495 275 166 156 34 . . 18 Time Decay 2877 | . 273 87 . 125 220 302 434 494 206 254 235 15 97 135 Lost Part 474 | . 20 . . . 60 . 20 80 40 20 34 . . 200 Lost Ally 200 | . . . . . 40 40 120 . . . . . . . Squads Dispatched 34 | . 1 1 . . 2 6 8 9 2 . . . 1 4 Investigation 6 | . 1 1 . . . . . 2 2 . . . . . Extermination 5 | . . . . . . . 2 2 . . . . . 1 Reinforcement 13 | . . . . . 2 3 3 5 . . . . . . Assault 1 | . . . . . . . . . . . . . 1 . Garrison 9 | . . . . . . 3 3 . . . . . . 3 Intercept . | . . . . . . . . . . . . . . . Searches Triggered . | . . . . . . . . . . . . . . . Construction Impeded 4 | . . . . . 1 1 1 1 . . . . . . Haulers Reinforced 1 | . . . . . . . . 1 . . . . . . Active Scanning Responses . | . . . . . . . . . . . . . . . Cargo Convoy Interrupts 1 | . . . . . . . 1 . . . . . . . Stealth | -11 -10 -10 -10 -9 -8 -8 -7 -6 -5 -5 -5 -5 -4 -4 --------- Run | Yrd Mat Min Exi Min Mat Sto Fac Fac Fac Upp Upp Zhi Pro Fac Distress Signals 8 | . 1 . . . 1 2 1 . . . . . . 3 Communications Jammed . | . . . . . . . . . . . . . . . Distress Signals . | . . . . . . . . . . . . . . . Times Spotted 211 | . 13 4 . 7 21 40 27 29 15 10 11 . 18 16 Peak Tracking Total 12 | . 6 2 . 4 8 4 5 5 4 4 5 . 12 4 Tactical Retreats 6 | . 1 . . 1 1 1 . 1 . . . . . 1 Traps | -11 -10 -10 -10 -9 -8 -8 -7 -6 -5 -5 -5 -5 -4 -4 ------- Run | Yrd Mat Min Exi Min Mat Sto Fac Fac Fac Upp Upp Zhi Pro Fac Traps Triggered 7 | . 1 . . . . 1 . 2 1 . 2 . . . Indirectly . | . . . . . . . . . . . . . . . Trap Hack Attempts . | . . . . . . . . . . . . . . . Triggered . | . . . . . . . . . . . . . . . Disarmed . | . . . . . . . . . . . . . . . Reprogrammed . | . . . . . . . . . . . . . . . Reused 1 | . . . . . . . . . 1 . . . . . Traps Reconfigurated 9 | . . . . . . . . . 9 . . . . . Traps Extracted . | . . . . . . . . . . . . . . . Installed 3 | . . . . . . . . . . . 2 . 1 . Triggered 1 | . . . . . . . . . 1 . . . . . Most Traps Carried 6 | . . . . . . . . . . . 5 3 6 5 Machines | -11 -10 -10 -10 -9 -8 -8 -7 -6 -5 -5 -5 -5 -4 -4 ---------- Run | Yrd Mat Min Exi Min Mat Sto Fac Fac Fac Upp Upp Zhi Pro Fac Machines Disabled 22 | . 1 . . . . 6 6 . 1 . . . . 8 Max in Single Turn 3 | . 1 . . . . 2 2 . 1 . . . . 3 Machines Repaired . | . . . . . . . . . . . . . . . Machines Dismantled . | . . . . . . . . . . . . . . . Machines Sabotaged . | . . . . . . . . . . . . . . . Overloaded Fab Kills . | . . . . . . . . . . . . . . . Hacking | -11 -10 -10 -10 -9 -8 -8 -7 -6 -5 -5 -5 -5 -4 -4 --------- Run | Yrd Mat Min Exi Min Mat Sto Fac Fac Fac Upp Upp Zhi Pro Fac Machines Accessed 33 | . 6 . 2 . 5 7 5 2 1 . . 5 . . Terminals 22 | . 6 . . . 5 6 3 1 1 . . . . . Fabricators 2 | . . . . . . . 2 . . . . . . . Repair Stations 1 | . . . . . . . . 1 . . . . . . Recycling Units 1 | . . . . . . 1 . . . . . . . . Scanalyzers . | . . . . . . . . . . . . . . . Garrison Access . | . . . . . . . . . . . . . . . Total Hacks 93 | . 18 . 2 . 22 17 10 4 2 . . 18 . . Successful 60 | . 12 . 2 . 10 9 7 1 1 . . 18 . . Failed 32 | . 6 . . . 11 8 3 3 1 . . . . . Catastrophic 5 | . . . . . 1 1 2 . 1 . . . . . Database Lockouts 1 | . . . . . 1 . . . . . . . . . Manual 30 | . 7 . 1 . 12 8 1 1 . . . . . . Terminals 69 | . 18 . . . 22 16 8 3 2 . . . . . Fabricators 2 | . . . . . . . 2 . . . . . . . Repair Stations 1 | . . . . . . . . 1 . . . . . . Recycling Units 1 | . . . . . . 1 . . . . . . . . Scanalyzers . | . . . . . . . . . . . . . . . Garrison Access . | . . . . . . . . . . . . . . . Terminal Hacks 43 | . 7 . 2 . 8 3 4 . 1 . . 18 . . Record 7 | . . . 1 . . . . . . . . 6 . . Part Schematic 4 | . . . . . . . . . . . . 4 . . Robot Analysis 7 | . . . . . 2 . 1 . . . . 4 . . Prototype ID Bank 5 | . . . . . 1 . . . . . . 4 . . Open Door 2 | . . . . . . 2 . . . . . . . . Branch Access Points 2 | . . . . . 1 . 1 . . . . . . . Emergency Access Points 1 | . . . . . 1 . . . . . . . . . Terminal Index 1 | . . . . . . . 1 . . . . . . . Alert Level 3 | . 1 . . . 2 . . . . . . . . . Locate Traps 5 | . 3 . . . . . 1 . 1 . . . . . Dispatch Records 1 | . 1 . . . . . . . . . . . . . Security Status 1 | . 1 . . . . . . . . . . . . . Hauler Manifests 2 | . 1 . . . . 1 . . . . . . . . Zone Layout 1 | . . . . . 1 . . . . . . . . . Proto ID Catalog 1 | . . . 1 . . . . . . . . . . . Fabricator Hacks 2 | . . . . . . . 2 . . . . . . . Network Status 1 | . . . . . . . 1 . . . . . . . Build 1 | . . . . . . . 1 . . . . . . . Repair Station Hacks . | . . . . . . . . . . . . . . . Recycling Unit Hacks 1 | . . . . . . 1 . . . . . . . . Retrieve Components 1 | . . . . . . 1 . . . . . . . . Scanalyzer . | . . . . . . . . . . . . . . . Garrison Access Hacks . | . . . . . . . . . . . . . . . Unauthorized Hacks 14 | . 5 . . . 2 5 1 1 . . . . . . Terminals 13 | . 5 . . . 2 5 1 . . . . . . . Botnet 4 | . . . . . 2 1 1 . . . . . . . Skim 9 | . 5 . . . . 4 . . . . . . . . Fabricators . | . . . . . . . . . . . . . . . Repair Stations 1 | . . . . . . . . 1 . . . . . . Patch 1 | . . . . . . . . 1 . . . . . . Recycling Units . | . . . . . . . . . . . . . . . Scanalyzers . | . . . . . . . . . . . . . . . Garrison Access . | . . . . . . . . . . . . . . . Data Cores Recovered 2 | . . . . . . . 1 . . . . . . 1 Used . | . . . . . . . . . . . . . . . Hacking Detections 20 | . 6 . . . 5 4 3 1 1 . . . . . Full Trace Events 5 | . 1 . . . 1 1 . 1 1 . . . . . Feedback Events . | . . . . . . . . . . . . . . . Feedback Blocked . | . . . . . . . . . . . . . . . Robot Schematics Acquired . | . . . . . . . . . . . . . . . Robots Built . | . . . . . . . . . . . . . . . Authchips . | . . . . . . . . . . . . . . . Time . | . . . . . . . . . . . . . . . Total Robot Build Rating . | . . . . . . . . . . . . . . . Part Schematics Acquired 4 | . . . . . . . . . . . . 4 . . Parts Built . | . . . . . . . . . . . . . . . Authchips . | . . . . . . . . . . . . . . . Time 106 | . . . . . . . 106 . . . . . . . Total Part Build Rating . | . . . . . . . . . . . . . . . Part Studies Acquired . | . . . . . . . . . . . . . . . Parts Repaired . | . . . . . . . . . . . . . . . Time . | . . . . . . . . . . . . . . . Parts Recycled . | . . . . . . . . . . . . . . . Recycled Matter . | . . . . . . . . . . . . . . . Retrieved Matter . | . . . . . . . . . . . . . . . Retrieved Components 9 | . . . . . . 9 . . . . . . . . Parts Scanalyzed . | . . . . . . . . . . . . . . . Part Schematics Acquired . | . . . . . . . . . . . . . . . Parts Damaged . | . . . . . . . . . . . . . . . Bothacking | -11 -10 -10 -10 -9 -8 -8 -7 -6 -5 -5 -5 -5 -4 -4 ------------ Run | Yrd Mat Min Exi Min Mat Sto Fac Fac Fac Upp Upp Zhi Pro Fac Used RIF Installer . | . . . . . . . . . . . . . . . Robots Hacked . | . . . . . . . . . . . . . . . Non-combat . | . . . . . . . . . . . . . . . Combat . | . . . . . . . . . . . . . . . Robot Hacks Applied . | . . . . . . . . . . . . . . . Relay Couplers Released . | . . . . . . . . . . . . . . . Fabnet Peak Effective % . | . . . . . . . . . . . . . . . Robots Rewired . | . . . . . . . . . . . . . . . Allies Hacked . | . . . . . . . . . . . . . . . Hacks Repelled . | . . . . . . . . . . . . . . . Allies | -11 -10 -10 -10 -9 -8 -8 -7 -6 -5 -5 -5 -5 -4 -4 -------- Run | Yrd Mat Min Exi Min Mat Sto Fac Fac Fac Upp Upp Zhi Pro Fac Total Allies 15 | . . 1 . 4 . 10 . . . . . . . . Largest Group 10 | . . 1 1 4 4 10 6 . . . . . . . Highest-Rated Group 173 | . . 31 31 59 59 173 96 . . . . . . . Highest-Rated Ally 31 | . . 31 31 31 31 29 16 . . . . . . . Total Orders . | . . . . . . . . . . . . . . . Ally Attacks 168 | . . 6 . 1 40 82 39 . . . . . . . Total Damage 1978 | . . 128 . 11 439 961 439 . . . . . . . Kills 31 | . . . . 1 4 21 5 . . . . . . . Allies Corrupted 1 | . . . . . . 1 . . . . . . . . Allies Melted . | . . . . . . . . . . . . . . . X0-1V1 Amusement Gains 146 | . 21 . . . 20 10 . 55 10 . 5 . . 25 Good Acts 31 | . . 2 . 2 1 5 1 5 2 1 . . 4 8 Bad Acts 34 | . . 2 . 1 . 7 5 4 2 6 7 . . . Intel | -11 -10 -10 -10 -9 -8 -8 -7 -6 -5 -5 -5 -5 -4 -4 ------- Run | Yrd Mat Min Exi Min Mat Sto Fac Fac Fac Upp Upp Zhi Pro Fac Active Infowar (turns) 6974 | . 435 167 . . . . 93 635 432 557 1729 845 1764 317 Optics 4087 | . 435 167 . . . . 66 . . . 513 845 1744 317 Sensors 5291 | . . . . . . . . . 123 557 1729 839 1764 279 Terrain 134 | . . . . . . . . 134 . . . . . . Traps 432 | . . . . . . . . . 432 . . . . . Jamming 662 | . . . . . . . 27 635 . . . . . . Robot Analysis Total 7 | . . . . . 2 . 1 . . . . 4 . . Derelict Logs Recovered . | . . . . . . . . . . . . . . . Drone Launches . | . . . . . . . . . . . . . . . Drone Recoveries . | . . . . . . . . . . . . . . . Exploration | -11 -10 -10 -10 -9 -8 -8 -7 -6 -5 -5 -5 -5 -4 -4 ------------- Run | Yrd Mat Min Exi Min Mat Sto Fac Fac Fac Upp Upp Zhi Pro Fac Turns Passed 11154 | . 694 572 368 326 491 676 1066 1306 438 557 1734 845 1764 317 Spaces Moved 4718 | 1 414 337 225 185 217 372 542 658 258 364 544 225 283 93 Core 116 | . . . . . 6 . . . 1 . 11 . 83 15 Treads 2190 | . 254 337 225 185 187 69 542 391 . . . . . . Legs 516 | 1 160 . . . . . . 266 89 . . . . . Wheels 1154 | . . . . . 24 303 . . 168 364 217 . . 78 Hover 1 | . . . . . . . . 1 . . . . . . Flight 741 | . . . . . . . . . . . 316 225 200 . Fastest Speed 80 | 120 120 160 160 160 105 80 160 120 95 95 110 285 445 80 Average Speed 199 | 120 145 160 160 160 166 107 160 159 136 104 288 352 589 202 Slowest Speed 1000 | 120 190 160 160 160 600 240 163 330 700 125 900 445 1000 850 Overloaded Moves 54 | . . . . . . . . . . . 54 . . . Propulsion Burnouts . | . . . . . . . . . . . . . . . Robots Hopped . | . . . . . . . . . . . . . . . Potential Cave-ins 5 | . . . . . . . . 2 . . 3 . . . Cave-ins Triggered . | . . . . . . . . . . . . . . . Teleports 1 | . . . . . . . . . . . . . . 1 Exploration Rate (%) 44 | 2 77 85 62 59 19 71 24 17 7 56 68 61 54 4 Regions Visited 14 Branch Regions 8 Pre-discovered Areas 6 | . 1 1 1 . . . . . . . . 3 . . Known Exits Taken 7 | . . . . 1 1 . . . 1 1 1 1 1 . Unknown Exits Taken 7 | 1 1 1 1 . . 1 1 1 . . . . . . Scrap Searched 10 | . . 1 . 2 . . . . . 1 4 . 2 . Spaces Dug 14 | . . . . . . . . 6 . 1 6 . 1 . Terrain Destroyed 378 | . 50 5 . . 10 . 59 54 68 38 19 . 5 70 Melee 14 | . . . . . . . . 6 . 1 6 . 1 . Projectile 24 | . . . . . 2 . 7 . . 5 7 . 1 2 AOE 340 | . 50 5 . . 8 . 52 48 68 32 6 . 3 68 Terrain Rammed . | . . . . . . . . . . . . . . . Walls Destroyed . | . . . . . . . . . . . . . . . Machines Disabled . | . . . . . . . . . . . . . . . Actions | -11 -10 -10 -10 -9 -8 -8 -7 -6 -5 -5 -5 -5 -4 -4 --------- Run | Yrd Mat Min Exi Min Mat Sto Fac Fac Fac Upp Upp Zhi Pro Fac Total 5873 | . 472 361 238 208 296 512 702 803 305 525 651 263 374 163 Wait 354 | . 7 5 . 14 13 45 67 16 . 134 21 1 31 . Move 4704 | . 413 336 224 184 216 371 541 657 257 363 543 224 282 93 Hop . | . . . . . . . . . . . . . . . Pick Up 46 | . 9 2 3 . 1 1 3 7 2 1 8 2 7 . Fast Attach 105 | . 5 1 . 2 9 12 11 14 6 2 17 8 2 16 Attach 34 | . 3 1 1 . 2 . 4 7 4 2 . 1 3 6 Detach 28 | . . 1 . . 1 1 8 5 3 . 1 3 1 4 Swap 62 | . 7 1 1 . 6 7 16 8 5 4 1 5 . 1 Drop 94 | . 8 3 9 . 5 14 10 17 2 1 6 9 7 3 Fire 324 | . 16 6 . 4 35 61 38 43 17 16 36 . 20 32 Melee 66 | . . . . . . . . 20 9 2 16 10 1 8 Ram . | . . . . . . . . . . . . . . . Kick 3 | . 1 . . . . . . 2 . . . . . . Crush 31 | . 3 5 . 4 8 . 4 7 . . . . . . Escape Stasis . | . . . . . . . . . . . . . . . Rewire . | . . . . . . . . . . . . . . . Trap 3 | . . . . . . . . . . . 2 . 1 . Miscellaneous 19 | . . . . . . . . . . . . . 19 . Route ------- -11/Scrapyard -10/Materials (discovered 6 exits: *Mat x3 / [*Min x2] / *Sub) -10/Mines (discovered 3 exits: *Mat / *Exi / *Sub) -10/Exiles (discovered 2 exits: [*Min x2]) -9/Mines (discovered 2 exits: *Mat x2) -8/Materials -8/Storage -7/Factory (discovered 3 exits: *Fac / Low x2) -6/Factory -5/Factory (discovered 2 exits: *Fac / *Upp) -5/Upper Caves -5/Upper Caves -5/Zhirov -4/Proximity Caves -4/Factory (discovered 1 exit: Res) History --------- Turn | Location | Event 1 | -11/Scrapyard | Discovered new exit (range 0) 1 | -11/Scrapyard | Entered Materials 225 | -10/Materials | Discovered new exit (range 13) 236 | -10/Materials | Discovered new exit (range 14) 312 | -10/Materials | Build established: Mutant 426 | -10/Materials | Discovered new exit (range 8) 451 | -10/Materials | Learned location of Subcaves (-10) 471 | -10/Materials | Discovered new exit (range 9) 485 | -10/Materials | Identified exit to Materials 485 | -10/Materials | Identified exit to Subcaves 511 | -10/Materials | Learned 2 Mines zone layouts 528 | -10/Materials | Learned Storage stockpile data 536 | -10/Materials | Learned Storage interactive machine intel 567 | -10/Materials | Learned location of 1 exit from Recycling 598 | -10/Materials | Prayed at D.C.S.S. Altar Unit 695 | -10/Materials | Entered Mines 697 | -10/Mines | Escorted by a lone wolf Derelict 701 | -10/Mines | Met a Derelict bent on vengeance 718 | -10/Mines | Learned location of Storage (-8) 852 | -10/Mines | Joined a pair of Derelicts in attacking an 0b10 outpost 1010 | -10/Mines | Discovered exit to Subcaves (range 15) 1026 | -10/Mines | X0-1V1 mutated your Weapon slot to Propulsion slot 1105 | -10/Mines | Discovered exit to Materials (range 12) 1256 | -10/Mines | Deemed a non-threat by the Exiles lab entrance 1256 | -10/Mines | Discovered new exit (range 5) 1267 | -10/Mines | Entered Exiles 1267 | -10/Exiles | Accompanied by 1 ally 1290 | -10/Exiles | Discovered new exit (range 15) 1319 | -10/Exiles | Met 8R-AWN 1345 | -10/Exiles | Met EX-HEX 1390 | -10/Exiles | Met EX-BIN 1409 | -10/Exiles | Aligned with FarCom system 1410 | -10/Exiles | Given EX-Vault access code 1449 | -10/Exiles | Opened EX-Vault 1459 | -10/Exiles | Found XL Autogun Array 1467 | -10/Exiles | Found Trap Reconfigurator 1477 | -10/Exiles | Found Firepult 1510 | -10/Exiles | Warned to stay clear of 0b10 Research branches 1558 | -10/Exiles | Met EX-DEC 1568 | -10/Exiles | Learned location of Zion (-7) 1620 | -10/Exiles | Discovered new exit (range 11) 1635 | -10/Exiles | Stole three prototypes: Trap Reconfigurator, Firepult, XL Autogun Array 1635 | -10/Exiles | Entered Mines 1682 | -9/Mines | Core integrity fell below 50% 1693 | -9/Mines | X0-1V1 sent allied G-34 Mercenary (x2) 1853 | -9/Mines | Identified exit to Materials 1853 | -9/Mines | X0-1V1 revealed exit location to -8/Materials 1899 | -9/Mines | Found a hidden stash of uninstalled traps 1917 | -9/Mines | Discovered exit to Materials (range 10) 1961 | -9/Mines | Entered Materials 1961 | -8/Materials | Accompanied by 4 allies 1961 | -8/Materials | Evolved 4 slots: Utility x1, Weapon x3 1966 | -8/Materials | Led the pair of lost Derelicts to an unsafe place 1989 | -8/Materials | Identified exit to Storage 2045 | -8/Materials | Central database locked down 2403 | -8/Materials | Lost 6 parts (3n2u1w) 2452 | -8/Materials | Entered Storage 2454 | -8/Storage | Loaded intel: 20 interactive machine locations 2454 | -8/Storage | FarCom data flow suspended 2543 | -8/Storage | Found Prototype Launcher 2543 | -8/Storage | Identified Gui. EMP Blaster 2724 | -8/Storage | X0-1V1 upgraded hostiles (x1) 2842 | -8/Storage | Assisted by bots powering up and referring to "LRC-V3" 2843 | -8/Storage | Garrison activated, responded to threat 2875 | -8/Storage | Core integrity fell below 50% 2918 | -8/Storage | Inventory capacity permanently improved by X0-1V1 (+1; -100 max core) 2943 | -8/Storage | X0-1V1 vaporized surrounding terrain (radius 18) 3088 | -8/Storage | Discovered new exit (range 8) 3128 | -8/Storage | Entered Factory 3128 | -7/Factory | Accompanied by 6 allies 3128 | -7/Factory | Evolved 2 slots: Utility x2 3134 | -7/Factory | Build established: Commander-Gunner 3437 | -7/Factory | Garrison activated, responded to threat 3510 | -7/Factory | Identified exit to Lower Caves 3575 | -7/Factory | Found Corrupted Prototype Launcher 3575 | -7/Factory | Identified Rocket Array 3577 | -7/Factory | Lost 3 allies 3586 | -7/Factory | Found Corrupted Rocket Array 3614 | -7/Factory | Weapon slot count temporarily expanded by X0-1V1 (+4) 3844 | -7/Factory | Build established: Tank 3864 | -7/Factory | System corruption reached 10% 3949 | -7/Factory | X0-1V1 enhanced Transport squad support 3957 | -7/Factory | Cargo convoy interrupted 4132 | -7/Factory | X0-1V1 announced a LAN party 4134 | -7/Factory | Discovered new exit (range 13) 4134 | -7/Factory | X0-1V1 sent you into danger 4194 | -7/Factory | Entered another Factory area 4194 | -6/Factory | Evolved 2 slots: Utility x1, Weapon x1 4437 | -6/Factory | X0-1V1 sent hostile Wasp (x3) 5052 | -6/Factory | Utility slot count permanently improved by X0-1V1 (+1) 5057 | -6/Factory | X0-1V1 foreshadows a heat wave 5259 | -6/Factory | Ambient heat levels rising (+10) 5313 | -6/Factory | X0-1V1 mutated your Propulsion slot to Weapon slot 5349 | -6/Factory | Build established: Scavenger-Mutant 5443 | -6/Factory | Ambient heat levels rising (+10) 5475 | -6/Factory | Discovered new exit (range 7) 5500 | -6/Factory | Entered another Factory area 5500 | -5/Factory | Evolved 2 slots: Propulsion x2 5578 | -5/Factory | Sight range permanently improved by X0-1V1 (+1; -150 max core) 5631 | -5/Factory | X0-1V1 sent you into danger 5778 | -5/Factory | X0-1V1 activates XOMVISION 5821 | -5/Factory | Discovered new exit (range 16) 5835 | -5/Factory | Discovered new exit (range 13) 5837 | -5/Factory | X0-1V1 enhanced Transport squad support 5839 | -5/Factory | Identified exit to Upper Caves 5938 | -5/Factory | Entered Upper Caves 5959 | -5/Upper Caves | Entered a destroyed Warlord outpost 6011 | -5/Upper Caves | Encountered a Warlord checkpoint 6024 | -5/Upper Caves | X0-1V1 sent hostile X-67 Chaingunner (x2) 6079 | -5/Upper Caves | X0-1V1 activates XOMVISION 6113 | -5/Upper Caves | Found Alien Artifact 6113 | -5/Upper Caves | Identified Core Expander 6113 | -5/Upper Caves | Installed Core Expander, added new Weapon slot 6183 | -5/Upper Caves | X0-1V1 sent hostile Y-64 Sentinel (x2) 6209 | -5/Upper Caves | System corruption reached 10% 6319 | -5/Upper Caves | Discovered new exit (range 8) 6326 | -5/Upper Caves | Identified exit to Upper Caves 6338 | -5/Upper Caves | Sensors blinded by X0-1V1 6495 | -5/Upper Caves | Entered another Upper Caves area 6497 | -5/Upper Caves | Build established: Scavenger-Executioner 6547 | -5/Upper Caves | Spotted B-75 Beast 6750 | -5/Upper Caves | Attracted the attention of an 0b10 checkpoint 6801 | -5/Upper Caves | Lost 4 parts (2n2u) 7051 | -5/Upper Caves | Build established: Executioner 7113 | -5/Upper Caves | System corruption reached 30% 7312 | -5/Upper Caves | X0-1V1 sent hostile B-60 Warrior (x2) 7361 | -5/Upper Caves | Mak. Terrain Scanner reconfigured into Item Mimic 7610 | -5/Upper Caves | Discovered new exit (range 17) 7620 | -5/Upper Caves | Encountered a Master Thief 7620 | -5/Upper Caves | Encountered a Master Thief 7620 | -5/Upper Caves | Encountered a Master Thief 7622 | -5/Upper Caves | Encountered a Master Thief 7622 | -5/Upper Caves | Trap Reconfigurator stolen by Master Thief 7624 | -5/Upper Caves | Encountered a Master Thief 7624 | -5/Upper Caves | Firepult stolen by Master Thief 7626 | -5/Upper Caves | Field Propulsion Drive stolen by Master Thief 8011 | -5/Upper Caves | Build established: Derelict-Assassin 8222 | -5/Upper Caves | Identified exit to Zhirov 8229 | -5/Upper Caves | Entered Zhirov 8232 | -5/Zhirov | Discovered new exit (range 3) 8308 | -5/Zhirov | Met Zhirov 8388 | -5/Zhirov | Learned location of Quarantine (-3) 8388 | -5/Zhirov | Learned location of Testing (-2) 8388 | -5/Zhirov | Learned location of Command (-1) 8410 | -5/Zhirov | Zhirov requested help retrieving the SGEMP Prototype 8572 | -5/Zhirov | Build established: Assassin 8736 | -5/Zhirov | Found Alien Artifact 8736 | -5/Zhirov | Identified Integrated Dissipator 8736 | -5/Zhirov | Installed Integrated Dissipator, increased core heat dissipation (+20) 8780 | -5/Zhirov | Found Alien Artifact 8911 | -5/Zhirov | Build established: Derelict-Assassin 9026 | -5/Zhirov | Identified exit to Proximity Caves 9074 | -5/Zhirov | Entered Proximity Caves 9337 | -4/Proximity Caves | Attached CPS modules to M-30 Cleanser 9339 | -4/Proximity Caves | Attached CPS modules to M-30 Cleanser 9630 | -4/Proximity Caves | Spotted B-86 Titan 9643 | -4/Proximity Caves | Build established: Assassin 10528 | -4/Proximity Caves | Identified exit to Factory 10528 | -4/Proximity Caves | X0-1V1 revealed exit location to -4/Factory 10750 | -4/Proximity Caves | Attracted the attention of an 0b10 checkpoint 10831 | -4/Proximity Caves | Attracted the attention of an 0b10 outpost 10838 | -4/Proximity Caves | Entered Factory 10838 | -4/Factory | Evolved 2 slots: Power x1, Utility x1 11020 | -4/Factory | System corruption reached 10% 11098 | -4/Factory | X0-1V1 downgraded hostiles (x2) 11121 | -4/Factory | Core integrity fell below 50% 11129 | -4/Factory | Identified exit to Research 11129 | -4/Factory | X0-1V1 revealed exit location to -3/Research 11154 | -4/Factory | Identified Transdimensional Reconstructor 11154 | -4/Factory | Warped through subspace 11155 | -4/Factory | Self-destructed Last Messages --------------- 11142_ Acquired 10 matter. 11142_ U-05 Engineer lays Concrete. 11144_ Acquired 10 matter. X0-1V1's Piety Tracker suddenly appears amidst shimmering waves of color. 11144_ U-05 Engineer lays Concrete. 11145_ Acquired 7 matter. 11145_ U-05 Engineer lays Concrete. 11146_ Y-64 Sentinel Unknown Energy Gun blasted off. 11147_ U-05 Engineer lays Concrete. 11148_ K-01 Serf collects debris. 11148_ U-05 Engineer lays Concrete. 11148_ Penetrated by Slug. 11149_ U-05 Engineer lays Concrete. 11149_ Slug penetrates Y-64 Sentinel. 11150_ U-05 Engineer lays Concrete. 11154_ Identified Transdimensional Reconstructor. 11154_ Warped through subspace. 11154_ U-05 Engineer lays Concrete. 11155_ ALERT: Potential suspicious activity detected, Programmers report to Factory Zone 4S. Map ----- +----------------------------------------------------+ | ?????????????????????????????????????????????????? | | ?????????????????????????????????????????????????? | | ?????????????????????????????????????????????????? | | ???????????????? ???????????????????????????????? | | ???????????????# ???????????????????????????????? | | ???????????????# ???????????#####??##########???? | | ???????????????# ??????????? ?# ##### | | ???????????????# ??????????#? ?# """ # | | ???????????????# ?????????? ?# """ # | | ???????????????? ??????????? ?# """ # | | ????????????????# ???????????? ! # + | | ????????????????# ????????# ?? # """ # | | ????????????????# ????????# #! """ # | | ????????????????# ????????# # """ # | | ????????????????# ????????????### # | | ????????????????# ?????????###### ##### | | ????????????????# ####### # | | ????????????????# ???# + + | | ?????#??????????# ???########## # | | ?????# ???????# ?????????# # # | | ?????# #???# ?????????### # % | | ???### ## ####??????# # | | ???+ ######## ! ""F" # | | ?????# " """ # % | | ?????? """ #######"#### ### | | ?????# "G u @ #?????## #?####### | | ?????? """ #???????##???????# | | ?????# #????????????????#%[ % | | ????# % #????????????????# ! | | ???+ #?????????######## | | ???## u u u #?????????# | | ????# #+######### # #?????????# | | ????# ?????????? # # ####?????????# | | ???????????????"""?######?????????????# ! | | ?????????????? ""?????????????????????# %* | | ?????????????" "??????????????????????# !###### | | ??????????????????????????????????????# #????? | | ??????????????????????????????????????# #????? | | ??????????????????????????????????????# #????? | | ????????????????????????????????????? #????? | | ???????????????????????????????????? # #????? | | ???????????????????????????????????" # #????? | | ?????????????????????????????????""" ?##### #????? | | ????????????????????????????????""""??????# #????? | | ????????????????????????????????"""???????# #????? | | ??????????????????????????????? ???????# #????? | | ???????????????????????????????###????????# #????? | | ??????????????????????????????????????????# #????? | | ??????????????????????????????????????????? ?????? | | ??????????????????????????????????????????? ?????? | +----------------------------------------------------+ Best States ------------- Heat Dissipation 95 Energy Generation 25 Energy Capacity 1640 Matter Stores 900 Matter Capacity 900 Sight Range 26 Robot Scan Range 15 Terrain Scan Range 14 Terrain Scan Density 85 Jamming Range 12 Armor Coverage 225 Resistance: KI 31 Core Shielding 30 Power Shielding 66 Utility Shielding 66 Weapon Shielding 33 Weapon Cycling 15 Evasion (%) 55 Melee Accuracy 6 Recoil Reduction 3 Particle Charging 15 Offensive Hacking 10 Defensive Hacking 14 Item Schematics ----------------- Assault Drone Bay | -5/Zhirov | Free Exp. Heat Sink | -5/Zhirov | Free Exp. Optical Array | -5/Zhirov | Free Imp. Arc Thrower | -5/Zhirov | Free Robot Schematics ------------------ None Fabricated ------------ Nothing Repaired ---------- Nothing Studied --------- None Alien Tech Used ----------------- Core Expander Integrated Dissipator Transdimensional Reconstructor Achievements -------------- None Challenges ------------ None Game ------ Seed SeismicCloakSource Manual? 0 Play Time 00:56:23 Cumulative 1351.0 hours Start 2026.08.01 @ 10:31:20 End 2026.08.01 @ 11:40:06 Sessions 1 Manual Loads 0 Difficulty Rogue Special Mode None Game No. 1652 Rogue 1368 Adventurer 124 Explorer 160 Win Type - Total 68 Types 53/0/9/4/1/0/0/1/0/0 Lore% 93 Gallery% 84 Achievement% 73 Wizard Run 0 Options --------- Layout 0 ASCII 0 Keyboard 1 Movement Numpad Keybinds 0 Fullscreen 2 Font 18/X11 Map View 76x50 Zoom Use 0% Tactical HUD 1 Map Filters NONE Filters NONE Steam 1 RUN: 4d9c9363-8705-4df6-adbf-8073b2546be4